bitfinex/quotes_ETHUSD_20240907
["timestamp","ask_amount","ask_price","bid_price","bid_amount"]
[1725680058593,0.18360959,2245.2,2244.8,4.4547]
[1725680058955,7.48720345,2245.3,2244.8,4.4547]
[1725680059149,0.18360959,2245.2,2244.8,4.4547]
[1725680059388,7.48720345,2245.3,2244.8,4.4547]
[1725680059584,0.18360959,2245.1,2244.8,4.4547]
[1725680059909,2.2977,2245.3,2244.9,4.4545]
[1725680060054,0.18360959,2245.0,2244.9,4.4545]
[1725680060255,2.2977,2245.3,2244.9,4.4545]
[1725680060680,0.18341567,2245.2,2244.9,4.4545]
[1725680061076,2.2977,2245.3,2244.9,4.4545]
[1725680061276,0.18342952,2245.1,2244.9,4.4545]
[1725680061479,2.2977,2245.3,2244.9,4.4545]
[1725680061990,0.18342952,2245.2,2244.9,4.4545]
[1725680062456,2.2977,2245.3,2244.9,4.4545]
[1725680062657,0.18342952,2245.1,2244.9,4.4545]
[1725680062857,2.2977,2245.3,2244.9,4.4545]
[1725680063065,0.18342952,2245.0,2244.9,4.4545]
[1725680063252,2.2977,2245.3,2244.9,4.4545]
[1725680063457,0.18345722,2245.0,2244.9,4.4545]
[1725680063693,2.2977,2245.3,2244.9,4.4545]
[1725680063859,2.2977,2245.3,2244.6,16.62524977]
[1725680063860,7.87211,2245.3,2244.6,16.62524977]
[1725680064069,0.18348492,2245.2,2244.7,4.65525344]
[1725680064269,4.63753492,2245.2,2244.7,4.4549]
[1725680064503,4.45405,2245.2,2244.7,4.4549]
[1725680064664,4.45423,2245.1,2244.6,11.91503]
[1725680065066,0.18348492,2245.0,2244.6,11.91503]
[1725680065268,0.18348492,2245.0,2244.6,7.46]
[1725680065269,4.63785492,2245.0,2244.6,7.46]
[1725680065472,2.2977,2244.9,2244.6,7.46]
[1725680065685,2.2977,2244.9,2244.5,4.45529]
[1725680065970,0.18322174,2244.8,2244.5,4.45529]
[1725680066174,0.18322174,2244.8,2244.6,4.65555742]
[1725680066360,0.18322174,2244.8,2244.6,4.45512]
[1725680067198,4.45437,2245.0,2244.6,4.45512]
[1725680067396,0.18322174,2244.7,2244.6,4.45512]
[1725680067605,4.45437,2245.0,2244.6,6.00713512]
[1725680067805,0.18322174,2244.7,2244.6,4.45512]
[1725680067965,4.45437,2245.0,2244.6,6.20768771]
[1725680068169,0.18322174,2244.9,2244.6,4.45512]
[1725680068381,0.18322174,2244.9,2244.5,4.45531]
[1725680069066,4.63781174,2244.9,2244.5,4.45531]
[1725680069919,2.4744,2244.7,2244.4,19.9]
[1725680070120,2.4744,2244.7,2244.2,5.38863983]
[1725680070268,2.4744,2244.7,2244.2,4.45591]
[1725680070471,4.45518,2244.6,2244.2,4.45591]
[1725680071317,4.45542,2244.5,2244.1,0.93272983]
[1725680071498,4.63811533,2244.5,2244.0,5.38892983]
[1725680071711,0.18269533,2244.5,2244.2,4.45575]
[1725680071884,6.92894,2244.9,2244.4,4.45543]
[1725680072082,0.18237664,2244.8,2244.4,4.45543]
[1725680072682,0.18237664,2244.8,2244.4,8.91087]
[1725680072882,0.18237664,2244.8,2244.5,4.45533]
[1725680073487,0.18237664,2244.8,2244.4,4.45543]
[1725680073996,0.18237664,2244.8,2244.4,8.91078]
[1725680074929,0.18113368,2244.8,2244.4,4.45535]
[1725680076306,6.92894,2244.9,2244.4,4.45535]
[1725680076992,6.92894,2244.9,2244.4,8.91076]
[1725680077414,6.92894,2244.9,2244.4,8.91079]
[1725680077793,6.92894,2244.9,2244.4,4.45535]
[1725680078518,0.18250149,2244.8,2244.4,4.45535]
[1725680078731,6.92894,2244.9,2244.4,4.45535]
[1725680078904,0.18250149,2244.8,2244.4,4.45535]
[1725680080827,4.63724149,2244.8,2244.4,4.45535]
[1725680081033,2.4744,2244.7,2244.4,4.45535]
[1725680081535,0.18226592,2244.6,2244.4,4.45535]
[1725680081831,2.4744,2244.7,2244.4,4.45535]
[1725680082136,0.18226592,2244.6,2244.4,4.45535]
[1725680082427,2.4744,2244.7,2244.4,4.45535]
[1725680082796,0.18226592,2244.6,2244.4,4.45535]
[1725680086641,0.18226592,2244.6,2244.4,8.91079]
[1725680086839,0.18226592,2244.6,2244.4,4.45535]
[1725680088899,0.18226592,2244.6,2244.3,4.45566]
[1725680089098,0.18226592,2244.6,2244.4,4.45544]
[1725680089303,2.4744,2244.7,2244.4,4.45544]
[1725680089541,0.18222435,2244.6,2244.4,4.45544]
[1725680089736,2.4744,2244.7,2244.4,4.45544]
[1725680089898,0.18222435,2244.6,2244.4,4.45544]
[1725680090104,0.18222435,2244.6,2244.5,4.45533]
[1725680090315,2.2925,2245.0,2244.6,4.45495]
[1725680090736,0.1822382,2244.9,2244.6,4.45495]
[1725680093943,6.74728,2244.8,2244.4,4.45541]
[1725680094241,6.74728,2244.8,2244.3,4.45571]
[1725680094427,4.45494,2244.7,2244.2,4.4558]
[1725680094628,4.63759389,2244.7,2244.2,4.4558]
[1725680094833,4.45494,2244.7,2244.2,4.4558]
[1725680095439,7.422008,2244.8,2244.3,0.20049597]
[1725680095647,7.422008,2244.8,2244.3,4.45568]
[1725680095852,0.18265389,2244.7,2244.3,4.45568]
[1725680096255,7.422008,2244.8,2244.3,4.45568]
[1725680096549,0.18265389,2244.6,2244.2,8.91162]
[1725680096719,7.422008,2244.8,2244.3,0.20048992]
[1725680096914,7.422008,2244.8,2244.2,8.91162]
[1725680097119,0.18265389,2244.7,2244.3,1.75271144]
[1725680097314,0.18265389,2244.7,2244.2,8.91162]
[1725680097315,7.422008,2244.8,2244.2,8.91162]
[1725680097515,7.422008,2244.8,2244.3,1.75273091]
[1725680097740,0.18239063,2244.7,2244.2,8.91162]
[1725680097938,0.18239063,2244.7,2244.3,1.75271548]
[1725680098145,11.876848,2244.8,2244.2,8.91162]
[1725680098360,7.422008,2244.8,2244.3,1.55224341]
[1725680098530,0.18239063,2244.7,2244.2,8.91162]
[1725680098720,7.422008,2244.8,2244.3,1.75275749]
[1725680098920,7.422008,2244.8,2244.2,8.91162]
[1725680099124,0.18239063,2244.7,2244.3,1.75275875]
[1725680099312,0.18239063,2244.7,2244.3,4.45571]
[1725680099512,7.422008,2244.8,2244.3,4.45571]
[1725680099716,0.18239063,2244.6,2244.3,4.45571]
[1725680100256,6.74728,2244.8,2244.3,4.45571]
[1725680100430,0.18239063,2244.5,2244.3,4.45571]
[1725680100631,11.20212,2244.8,2244.3,4.45571]
[1725680100835,0.18239063,2244.4,2244.3,4.45571]
[1725680101029,11.20212,2244.8,2244.3,4.45571]
[1725680101257,11.20212,2244.8,2244.3,4.65618242]
[1725680101258,6.74728,2244.8,2244.3,4.65618242]
[1725680101541,0.18239063,2244.7,2244.3,4.45571]
[1725680101841,6.74728,2244.8,2244.3,4.45571]
[1725680102041,0.18239063,2244.6,2244.3,4.45571]
[1725680102218,6.74728,2244.8,2244.3,4.45571]
[1725680102420,4.63788063,2244.5,2244.1,0.93272983]
[1725680102620,6.7478,2244.6,2244.2,4.08149905]
[1725680102845,6.7478,2244.6,2244.1,5.38875983]
[1725680103052,0.18239063,2244.5,2244.2,4.08131526]
[1725680103286,0.18239063,2244.5,2244.3,1.55227251]
[1725680103471,0.18239063,2244.5,2244.4,8.53649324]
[1725680103777,6.74704,2244.9,2244.5,4.45532]
[1725680103937,0.18239063,2244.8,2244.5,4.45532]
[1725680105171,0.18239063,2244.8,2244.4,4.45551]
[1725680105578,6.74704,2244.9,2244.5,1.55216003]
[1725680105737,2.2925,2244.9,2244.5,4.45518]
[1725680106133,0.18239063,2244.8,2244.5,4.45518]
[1725680107760,0.18239063,2244.8,2244.6,1.55209971]
[1725680107962,0.18239063,2244.8,2244.5,4.45518]
[1725680108176,0.18239063,2244.8,2244.6,1.55209041]
[1725680108342,0.18239063,2244.8,2244.5,4.45518]
[1725680108537,0.18239063,2244.8,2244.6,1.55209789]
[1725680108742,0.18239063,2244.8,2244.5,4.45518]
[1725680109353,0.18239063,2244.8,2244.6,1.55213155]
[1725680109540,1.32077069,2244.8,2244.4,0.93272983]
[1725680109877,1.32077069,2244.8,2244.5,4.0808794]
[1725680110169,1.32077069,2244.8,2244.6,1.55216252]
[1725680110372,1.32077069,2244.8,2244.4,5.38814983]
[1725680110577,1.32077069,2244.8,2244.5,3.88042038]
[1725680110759,1.25224607,2244.7,2244.6,1.55216815]
[1725680110951,1.25224607,2244.7,2244.6,1.55216314]
[1725680111152,1.4345397,2244.7,2244.6,1.55216314]
[1725680113666,2.275,2244.6,2244.4,0.93272983]
[1725680113845,6.73014,2244.6,2244.3,0.93272983]
[1725680114045,0.1823352,2244.5,2244.4,1.55231733]
[1725680115176,4.6376652,2244.5,2244.4,1.55231733]
[1725680115343,5.77444572,2244.5,2244.2,0.93272983]
[1725680115546,5.77444572,2244.5,2244.3,1.55237794]
[1725680115884,4.45563,2244.4,2244.1,0.93272983]
[1725680116181,4.45563,2244.4,2244.2,3.88101416]
[1725680116182,2.275,2244.3,2244.2,3.88101416]
[1725680116555,0.18209963,2244.3,2244.2,3.88101416]
[1725680116950,0.18197489,2244.3,2244.2,3.88101416]
[1725680117467,0.18197489,2244.3,2244.2,1.55240566]
[1725680117669,2.275,2244.4,2244.2,1.55240566]
[1725680117881,0.18197489,2244.3,2244.0,5.38904983]
[1725680118182,0.18197489,2244.3,2244.1,3.88126732]
[1725680118354,7.51724105,2244.4,2244.0,5.38904983]
[1725680118554,7.51724105,2244.4,2244.1,3.88117096]
[1725680118862,4.45576,2244.3,2244.0,0.93272983]
[1725680119074,4.45576,2244.3,2244.1,3.88122376]
[1725680119282,5.65306011,2244.3,2244.0,0.93272983]
[1725680119453,5.65306011,2244.3,2244.1,1.55251967]
[1725680119656,5.65306011,2244.3,2243.9,5.38915983]
[1725680119969,6.73109,2244.2,2243.7,9.84629983]
[1725680120279,4.45613,2244.1,2243.8,1.55263498]
[1725680120485,4.45613,2244.1,2243.7,5.38947983]
[1725680120645,4.45613,2244.1,2243.8,3.8816631]
[1725680120979,4.45613,2244.1,2243.7,5.38947983]
[1725680121182,4.45613,2244.1,2243.8,1.55266296]
[1725680121350,4.45613,2244.1,2243.7,4.45675]
[1725680121545,6.73095,2244.2,2243.8,1.55266315]
[1725680121743,1.23840101,2244.1,2243.8,4.4567]
[1725680122028,4.45576,2244.3,2243.9,6.00912484]
[1725680122168,7.51725105,2244.4,2243.9,4.4565]
[1725680122370,4.45574,2244.3,2243.9,4.4565]
[1725680122584,4.45574,2244.3,2243.8,4.4567]
[1725680122887,1.1972991,2244.2,2243.9,1.5525717]
[1725680123183,1.1972991,2244.2,2243.8,4.4567]
[1725680123739,2.275,2244.1,2243.8,4.4567]
[1725680123943,2.45608789,2244.1,2243.8,4.4567]
[1725680124184,2.45608789,2244.1,2243.7,6.89019977]
[1725680124482,2.45608789,2244.1,2243.8,3.88144052]
[1725680124643,2.45608789,2244.1,2243.7,6.89019977]
[1725680124975,2.45608789,2244.1,2243.8,3.88143135]
[1725680125178,2.45608789,2244.1,2243.7,6.89019977]
[1725680125377,2.45608789,2244.1,2243.8,3.88141016]
[1725680125597,2.45608789,2244.1,2243.7,6.89019977]
[1725680125765,2.45608789,2244.1,2243.8,1.55259311]
[1725680125970,7.72314959,2244.1,2243.6,5.83631983]
[1725680126283,7.72314959,2244.1,2243.7,4.45689]
[1725680126452,7.5420617,2244.1,2243.6,4.45709]
[1725680126656,0.18108789,2244.0,2243.6,4.45703]
[1725680126857,1.07313276,2244.0,2243.6,4.45703]
[1725680127083,0.89204487,2244.0,2243.6,4.45703]
[1725680129298,0.18108789,2243.9,2243.6,4.45703]
[1725680129656,3.0859317,2244.1,2243.6,4.45703]
[1725680129856,0.18047794,2243.8,2243.6,4.45703]
[1725680130060,3.0859317,2244.1,2243.6,4.45703]
[1725680130295,0.18047794,2243.7,2243.6,4.45703]
[1725680130493,2.275,2244.1,2243.6,4.45703]
[1725680131071,6.73115,2244.1,2243.6,4.45703]
[1725680131476,2.44487794,2244.0,2243.6,4.45703]
[1725680131863,2.2644,2244.0,2243.6,4.45703]
[1725680132283,0.18047794,2243.9,2243.6,4.45703]
[1725680137127,0.18047794,2243.9,2243.6,4.45699]
[1725680137288,2.2644,2244.0,2243.7,4.4569]
[1725680137788,2.2644,2244.0,2243.6,5.95757994]
[1725680137990,0.18008972,2243.9,2243.6,5.95757994]
[1725680138190,0.18008972,2243.9,2243.6,10.41459994]
[1725680139233,0.18008972,2243.9,2243.8,12.69092994]
[1725680139594,4.45523,2244.6,2244.0,4.45616]
[1725680139920,0.84614543,2244.5,2244.0,5.95674994]
[1725680140135,0.17418243,2244.5,2244.1,4.45612]
[1725680140289,0.17418243,2244.5,2244.2,6.73272]
[1725680140494,0.17418243,2244.5,2244.2,4.45582]
[1725680140799,2.2644,2244.7,2244.2,4.45582]
[1725680141007,0.17418243,2244.4,2244.2,4.45582]
[1725680141202,2.2644,2244.7,2244.2,4.45582]
[1725680141406,7.43794227,2244.7,2244.1,4.45612]
[1725680141621,7.43794227,2244.7,2244.1,8.91216]
[1725680141622,0.17418243,2244.6,2244.1,8.91216]
[1725680141832,0.17418243,2244.6,2244.1,4.45604]
[1725680143517,4.62932243,2244.6,2244.1,4.45603]
[1725680143896,6.71987,2244.5,2243.9,8.91278]
[1725680144096,8.10130672,2244.5,2243.9,8.91278]
[1725680144320,8.10130672,2244.5,2243.9,8.91276]
[1725680146229,4.45557,2244.4,2243.9,4.45634]
[1725680146533,4.45556,2244.4,2243.9,4.45634]
[1725680146732,0.17471025,2244.3,2243.9,4.45634]
[1725680150001,11.17538,2244.5,2243.9,4.45634]
[1725680150238,0.17471025,2244.2,2243.9,4.45634]
[1725680150617,4.45555,2244.4,2243.9,4.45634]
[1725680150838,0.17455748,2244.1,2243.9,4.45634]
[1725680151141,4.45555,2244.4,2243.9,4.45634]
[1725680151351,1.11754,2244.3,2243.9,4.45634]
[1725680151645,1.29247251,2244.3,2243.9,4.45634]
[1725680154348,0.17493251,2244.3,2243.9,4.45634]
[1725680159320,2.4262,2244.2,2244.0,1.55253817]
[1725680159521,2.4262,2244.2,2243.9,4.45634]
[1725680159717,0.17491862,2244.1,2243.9,4.45634]
[1725680160404,0.17491862,2244.1,2243.8,5.38941983]
[1725680160604,0.17491862,2244.1,2243.9,2.3288514]
[1725680160841,1.32619748,2244.1,2243.8,4.45669]
[1725680161149,1.15127886,2244.1,2243.8,4.45669]
[1725680161710,2.4262,2244.2,2243.8,8.91331]
[1725680162055,6.88174,2244.4,2243.9,6.00915831]
[1725680162252,6.88142,2244.6,2244.1,4.45601]
[1725680162746,0.16892413,2244.5,2244.1,4.45601]
[1725680162929,0.16892413,2244.5,2244.2,6.73269]
[1725680163103,2.0,2245.4,2244.1,1.58970581]
[1725680163104,2.4262,2245.0,2244.3,1.50058994]
[1725680163320,4.45429,2245.1,2244.6,4.45504]
[1725680163321,4.92069026,2245.1,2244.6,4.45504]
[1725680163672,5.39159603,2245.1,2244.6,4.45504]
[1725680164163,4.45387,2245.3,2244.5,1.58968707]
[1725680164325,4.45387,2245.3,2244.8,4.45463]
[1725680164526,8.90775,2245.3,2244.8,4.45463]
[1725680165230,8.90771,2245.3,2244.8,4.45463]
[1725680166439,4.45384,2245.3,2244.8,4.45463]
[1725680166633,0.688004,2245.2,2244.8,4.45463]
[1725680166839,5.141974,2245.2,2244.7,8.23240994]
[1725680167108,4.45414,2245.1,2244.6,4.455]
[1725680167560,6.74103,2245.0,2244.4,8.22109994]
[1725680167868,4.45455,2244.9,2244.4,8.22109994]
[1725680168438,4.45455,2244.9,2244.4,12.67653994]
[1725680169063,5.574108,2244.9,2244.4,5.95599994]
[1725680169564,5.574108,2244.9,2244.4,10.41143994]
[1725680170245,5.574108,2244.9,2244.4,5.95599994]
[1725680170457,4.45475,2244.8,2244.4,5.95599994]
[1725680172678,4.45475,2244.8,2244.4,4.45541]
[1725680173389,5.574108,2244.9,2244.4,8.91084]
[1725680174992,4.45455,2244.9,2244.4,8.91084]
[1725680175191,4.45455,2244.9,2244.5,4.45528]
[1725680175354,11.19556,2245.0,2244.5,6.72038]
[1725680175672,11.19547,2245.0,2244.5,6.72038]
[1725680175872,0.17052407,2244.9,2244.5,6.72038]
[1725680177952,0.17052407,2244.9,2244.4,4.45541]
[1725680177953,4.62516407,2244.9,2244.4,4.45541]
[1725680178592,4.62516407,2244.9,2244.5,4.45533]
[1725680182066,4.45494,2244.7,2244.3,4.45571]
[1725680182271,0.445494,2244.6,2244.3,4.45571]
[1725680182600,0.17063534,2244.5,2244.2,4.45575]
[1725680182790,0.17063534,2244.5,2244.2,8.91158]
[1725680182960,0.17063534,2244.5,2244.2,4.45575]
[1725680183165,0.17063534,2244.5,2244.2,8.91159]
[1725680183765,0.17063534,2244.5,2244.2,4.45575]
[1725680184200,0.445494,2244.6,2244.2,8.91159]
[1725680184370,0.17044061,2244.4,2244.2,8.91159]
[1725680184569,11.1966,2244.7,2244.2,4.45575]
[1725680184790,0.17044061,2244.3,2244.2,4.45575]
[1725680184981,12.31626,2244.7,2244.2,4.45575]
[1725680185494,0.17044061,2244.6,2244.2,4.45575]
[1725680186209,4.62569061,2244.6,2244.1,6.72121]
[1725680186582,4.45525,2244.6,2244.1,6.72121]
[1725680186785,5.686895,2244.6,2244.1,6.72121]
[1725680186984,0.17041279,2244.5,2244.1,6.72121]
[1725680187372,0.17041279,2244.5,2244.2,4.45592]
[1725680189413,5.686895,2244.6,2244.2,4.45592]
[1725680193512,4.45525,2244.6,2244.2,4.45592]
[1725680193728,8.91054,2244.6,2244.1,4.45609]
[1725680193895,8.91048,2244.6,2244.1,4.45609]
[1725680194801,8.91047,2244.6,2244.1,4.45609]
[1725680195005,4.45535,2244.5,2244.1,4.45609]
[1725680195231,4.45523,2244.6,2244.1,4.45609]
[1725680197328,4.45549,2244.5,2244.0,4.45615]
[1725680197529,6.74804,2244.4,2243.9,8.23397994]
[1725680198150,4.62561854,2244.3,2243.9,6.73339]
[1725680198296,4.62561854,2244.3,2243.9,4.45649]
[1725680199540,0.16982854,2244.3,2244.0,4.45622]
[1725680199834,0.16982854,2244.3,2244.0,6.73312]
[1725680199993,0.16982854,2244.3,2244.1,4.45612]
[1725680200337,4.45508,2244.7,2244.3,2.2769]
[1725680200841,0.16973115,2244.6,2244.3,6.73262]
[1725680201542,0.16973115,2244.5,2244.3,6.73262]
[1725680202039,5.61477173,2244.8,2244.3,6.73262]
[1725680202337,1.15985173,2244.8,2244.4,4.45547]
[1725680202527,0.16973115,2244.7,2244.4,4.45547]
[1725680203048,4.45475,2244.8,2244.4,4.45547]
[1725680203204,0.16973115,2244.6,2244.4,4.45547]
[1725680203404,4.45475,2244.8,2244.4,4.45547]
[1725680203604,0.16973115,2244.5,2244.4,4.45547]
[1725680204112,4.45475,2244.8,2244.3,4.45572]
[1725680204355,0.16973115,2244.7,2244.3,4.45572]
[1725680204514,4.62470115,2244.7,2244.3,4.45572]
[1725680204839,2.2924,2244.6,2244.3,4.45572]
[1725680205216,0.16981462,2244.5,2244.3,4.45572]
[1725680208461,0.16981462,2244.5,2244.1,6.7329]
[1725680208634,0.16981462,2244.5,2244.1,11.18894]
[1725680208828,0.16981462,2244.5,2244.1,6.7329]
[1725680209039,0.16981462,2244.5,2244.1,11.18894]
[1725680209455,0.16981462,2244.5,2244.2,4.45589]
[1725680211378,4.62514462,2244.5,2244.1,4.4561]
[1725680212543,0.16981462,2244.5,2244.2,4.45573]
[1725680212754,0.16981462,2244.5,2244.3,4.45564]
[1725680213065,4.45504,2244.7,2244.3,4.45564]
[1725680213234,0.16981462,2244.4,2244.3,4.45564]
[1725680213760,4.45504,2244.7,2244.3,4.45564]
[1725680213960,0.16981462,2244.4,2244.3,4.45564]
[1725680214125,4.45504,2244.7,2244.3,4.45564]
[1725680214325,0.16981462,2244.6,2244.3,4.45564]
[1725680214861,0.16981462,2244.6,2244.2,4.45573]
[1725680215243,0.16981462,2244.6,2244.3,4.4557]
[1725680215649,0.16981462,2244.6,2244.4,4.45552]
[1725680216168,0.16980072,2244.5,2244.4,4.45552]
[1725680216672,2.4237,2244.8,2244.4,8.91091]
[1725680216964,4.45468,2244.9,2244.5,4.45529]
[1725680217123,0.16980072,2244.7,2244.5,4.45529]
[1725680217321,4.92088382,2245.1,2244.6,2.2769]
[1725680217322,0.46659382,2245.1,2244.6,2.2769]
[1725680217527,0.16980072,2245.0,2244.9,4.45454]
[1725680217750,6.87686,2245.6,2245.1,4.45407]
[1725680217976,1.132993,2245.5,2245.1,4.45407]
[1725680218630,5.586363,2245.5,2245.1,4.45407]
[1725680218836,4.4528,2245.8,2245.2,5.95437994]
[1725680219174,4.4528,2245.8,2245.4,4.45354]
[1725680220231,8.90567,2245.8,2245.3,6.81970337]
[1725680220424,8.90567,2245.8,2245.3,6.73064]
[1725680220674,0.16980072,2245.7,2245.3,6.73064]
[1725680221047,8.90567,2245.8,2245.3,6.73064]
[1725680221243,0.16980072,2245.6,2245.3,2.2769]
[1725680221470,4.45296,2245.7,2245.3,2.2769]
[1725680221681,0.16980072,2245.5,2245.3,2.2769]
[1725680221979,0.16980072,2245.4,2245.3,6.73064]
[1725680222344,4.4528,2245.8,2245.3,6.73064]
[1725680222545,0.16980072,2245.7,2245.3,6.73064]
[1725680222747,0.16980072,2245.7,2245.4,4.45345]
[1725680222957,4.4521,2246.2,2245.7,6.72981]
[1725680223159,4.89727,2246.2,2245.7,2.2769]
[1725680223396,4.45217,2246.1,2245.7,2.2769]
[1725680224164,4.45292,2245.8,2245.3,6.73064]
[1725680224405,6.87615,2246.0,2245.5,4.45325]
[1725680224560,8.053516,2246.0,2245.5,4.45325]
[1725680224900,4.45256,2245.9,2245.4,5.95399994]
[1725680225863,8.9052,2245.9,2245.4,5.95399994]
[1725680226218,8.90521,2245.9,2245.4,5.95399994]
[1725680226703,8.90522,2245.9,2245.4,5.95399994]
[1725680227004,4.45292,2245.8,2245.3,2.2769]
[1725680227177,4.45305,2245.7,2245.2,5.95437994]
[1725680228067,4.45305,2245.7,2245.2,10.40822994]
[1725680228317,4.45336,2245.5,2245.0,4.45418]
[1725680228606,4.45398,2245.2,2244.7,4.45483]
[1725680228775,6.85848,2245.2,2244.7,4.45483]
[1725680229312,4.45426,2245.1,2244.5,4.45531]
[1725680229462,4.45426,2245.1,2244.6,4.45513]
[1725680229903,8.9085,2245.1,2244.6,4.45513]
[1725680230261,5.58554,2245.1,2244.6,4.45513]
[1725680231071,10.03987,2245.1,2244.6,4.45513]
[1725680235616,0.17216471,2245.0,2244.6,4.45513]
[1725680238130,0.17216471,2245.0,2244.9,4.45454]
[1725680238424,0.17120551,2245.0,2244.9,4.54362055]
[1725680238832,4.45359,2245.4,2244.9,4.54362055]
[1725680239047,0.17120551,2245.0,2244.9,4.54362055]
[1725680239332,6.85785,2245.5,2245.0,4.45424]
[1725680240029,4.45357,2245.4,2245.0,4.45424]
[1725680240234,4.45335,2245.5,2245.0,4.45424]
[1725680240710,4.45335,2245.5,2245.0,8.90848]
[1725680240907,5.343995,2245.5,2245.0,8.90848]
[1725680241134,5.343995,2245.5,2245.0,4.45424]
[1725680241913,9.797445,2245.5,2245.0,4.45424]
[1725680242115,5.343995,2245.5,2245.0,8.90849]
[1725680242515,5.343995,2245.5,2245.0,4.45424]
[1725680244341,9.797445,2245.5,2245.0,4.45424]
[1725680248449,0.9797445,2245.4,2245.0,4.45424]
[1725680248777,8.9068,2245.5,2245.0,4.45424]
[1725680249937,4.45355,2245.4,2244.9,4.45452]
[1725680250646,0.17203976,2245.3,2244.9,4.45452]
[1725680250846,0.17203976,2245.3,2244.9,4.54359502]
[1725680254542,0.17203976,2245.3,2244.9,4.45452]
[1725680255046,0.17203976,2245.3,2245.0,0.08907505]
[1725680259258,7.96937374,2245.3,2244.8,3.77749068]
[1725680259463,4.45422,2245.1,2244.6,6.73186]
[1725680259778,4.45442,2245.0,2244.6,2.2769]
[1725680263258,4.45422,2245.1,2244.7,1.50059068]
[1725680263777,0.17174779,2245.0,2244.7,1.50059068]
[1725680264188,0.17174779,2245.0,2244.7,5.95552068]
[1725680264486,0.17174779,2245.0,2244.9,2.2769]
[1725680265197,4.45386,2245.3,2244.9,6.73144]
[1725680265506,8.90696,2245.5,2245.0,4.54337792]
[1725680265674,0.17174779,2245.2,2245.0,4.54337792]
[1725680265871,8.90696,2245.5,2245.0,4.54337792]
[1725680266060,0.17201196,2245.1,2245.0,4.54337792]
[1725680266261,8.90696,2245.5,2245.0,4.54337792]
[1725680266599,4.45357,2245.4,2245.0,4.54337792]
[1725680266762,4.62558196,2245.4,2245.0,4.54337792]
[1725680267162,4.62558196,2245.4,2245.0,0.08907792]
[1725680267364,4.45375,2245.3,2245.0,0.08907792]
[1725680267587,0.17205366,2245.2,2245.0,0.08907792]
[1725680267792,4.45375,2245.3,2245.0,0.08907792]
[1725680267959,0.17205366,2245.1,2245.0,0.08907792]
[1725680268163,4.45375,2245.3,2245.0,0.08907792]
[1725680268359,0.17205366,2245.2,2245.0,0.08907792]
[1725680268610,4.45375,2245.3,2245.0,0.08907792]
[1725680268810,0.17205366,2245.1,2245.0,0.08907792]
[1725680269104,4.45375,2245.3,2245.0,0.08907792]
[1725680269407,0.17205366,2245.2,2245.0,0.08907792]
[1725680269613,4.45375,2245.3,2245.0,0.08907792]
[1725680269774,0.17205366,2245.1,2245.0,0.08907792]
[1725680269974,4.45375,2245.3,2245.0,0.08907792]
[1725680270189,0.17205366,2245.2,2245.0,0.08907792]
[1725680270476,4.45375,2245.3,2245.0,0.08907792]
[1725680270672,0.17205366,2245.1,2245.0,0.08907792]
[1725680270876,4.45375,2245.3,2245.0,0.08907792]
[1725680271072,0.17205366,2245.1,2245.0,0.08907792]
[1725680271276,4.45375,2245.3,2245.0,0.08907792]
[1725680271682,0.17205366,2245.2,2245.0,0.08907792]
[1725680271983,0.17205366,2245.1,2245.0,0.08907792]
[1725680272207,4.45375,2245.3,2245.0,0.08907792]
[1725680272430,0.17205366,2245.1,2245.0,0.08907792]
[1725680272716,4.45375,2245.3,2245.0,0.08907792]
[1725680273085,0.17198413,2245.2,2245.0,0.08907792]
[1725680273291,4.45375,2245.3,2245.0,0.08907792]
[1725680274018,0.17198413,2245.2,2245.0,0.08907792]
[1725680274422,4.45375,2245.3,2245.0,0.08907792]
[1725680274714,0.17194242,2245.1,2245.0,0.08907792]
[1725680274921,4.45375,2245.3,2245.0,0.08907792]
[1725680275420,0.17194242,2245.2,2245.0,0.08907792]
[1725680275822,4.45375,2245.3,2245.0,0.08907792]
[1725680276109,0.17194242,2245.1,2245.0,0.08907792]
[1725680276317,4.45375,2245.3,2245.0,0.08907792]
[1725680276814,0.17194242,2245.2,2245.0,0.08907792]
[1725680277350,4.45375,2245.3,2245.0,0.08907792]
[1725680277486,0.17194242,2245.1,2245.0,0.08907792]
[1725680277819,4.45375,2245.3,2245.0,0.08907792]
[1725680278315,0.17194242,2245.2,2245.0,0.08907792]
[1725680278683,4.45375,2245.3,2245.0,0.08907792]
[1725680278883,0.17194242,2245.1,2245.0,0.08907792]
[1725680279214,4.45375,2245.3,2245.0,0.08907792]
[1725680279783,0.17194242,2245.2,2245.0,0.08907792]
[1725680279978,4.45375,2245.3,2245.0,0.08907792]
[1725680280175,0.17194242,2245.2,2245.0,0.08907792]
[1725680280413,4.45398,2245.2,2244.9,2.36597561]
[1725680280582,4.62609632,2245.1,2244.8,19.9]
[1725680282719,4.45435,2245.0,2244.8,19.9]
[1725680283315,4.45391,2245.3,2244.9,1.55193291]
[1725680283517,4.45353,2245.5,2244.9,1.55193291]
[1725680283518,4.45363,2245.4,2244.9,6.04420142]
[1725680283758,4.45363,2245.4,2245.0,1.55184182]
[1725680283915,4.45363,2245.4,2244.9,10.49873142]
[1725680284241,4.45363,2245.4,2245.0,1.55185698]
[1725680284556,4.45363,2245.4,2245.0,0.08907553]
[1725680285427,6.87357,2245.9,2245.4,4.45351]
[1725680285724,4.45267,2245.9,2245.5,4.54239572]
[1725680286963,0.44521,2246.2,2245.6,6.72986]
[1725680286964,4.45201,2246.2,2245.6,6.72986]
[1725680287252,4.45201,2246.2,2245.7,4.54189448]
[1725680287559,4.45201,2246.2,2245.8,0.08904501]
[1725680287741,6.84011,2246.3,2245.8,4.54179501]
[1725680288068,6.84011,2246.3,2245.8,4.45275]
[1725680288349,6.84011,2246.3,2245.7,5.95352068]
[1725680288552,4.45201,2246.2,2245.7,1.50059068]
[1725680291432,4.45201,2246.2,2245.7,1.45059068]
[1725680293036,4.45216,2246.1,2245.7,1.45059068]
[1725680293363,1.129227,2246.1,2245.4,6.73025]
[1725680293538,4.45275,2245.8,2245.4,8.23084068]
[1725680293933,0.17294303,2245.7,2245.4,8.23084068]